lending/lending_fUSD_20251111
["ID","MTS","AMOUNT","RATE_DAILY","PERIOD"]
[393619946,1762858239588,-500.0,0.00034859,7]
[393619947,1762858239598,-500.0,0.00034864,7]
[393619948,1762858239608,-500.0,0.00034892,7]
[393619949,1762858239618,-500.0,0.00035041,30]
[393619950,1762858239627,-500.0,0.00035077,30]
[393619951,1762858239637,-500.0,0.00035117,30]
[393619952,1762858239646,-500.0,0.00035124,30]
[393619953,1762858239655,-177.73,0.00035139,2]
[393619954,1762858239664,-1000.0,0.00035148,2]
[393619955,1762858239673,-460.09032758,0.00035171,30]
[393619956,1762858239682,-500.0,0.00035181,30]
[393619957,1762858239691,-925.81693807,0.00035221,30]
[393619958,1762858239700,-162.054811,0.00035252,2]
[393619959,1762858239710,-154.118764,0.00035252,2]
[393619960,1762858239719,-157.332354,0.00035252,2]
[393619961,1762858239730,-500.0,0.00035264,30]
[393619962,1762858239739,-500.0,0.00035268,30]
[393619963,1762858239749,-515.69447082,0.00035324,30]
[393619964,1762858239758,-500.0,0.00035376,30]
[393619965,1762858239767,-500.0,0.00035388,30]
[393619966,1762858239777,-504.91597169,0.00035389,30]
[393619967,1762858239786,-782.82126604,0.00035427,30]
[393619968,1762858239796,-500.0,0.00035472,30]
[393619969,1762858239806,-500.0,0.00035577,30]
[393619970,1762858239815,-500.0,0.00035589,30]
[393619971,1762858239824,-1000.0,0.00035667,7]
[393619972,1762858239834,-6920.86465569,0.00035672,3]
[393619973,1762858239844,-500.0,0.00035682,30]
[393619974,1762858239854,-1048.89,0.000357,30]
[393619975,1762858239863,-9812.11429424,0.0003573,3]
[393619976,1762858239872,-500.0,0.0003574,30]
[393619977,1762858239881,-751.50131424,0.00035775,30]
[393619979,1762858239891,-500.0,0.00035783,30]
[393619982,1762858239899,-500.0,0.00035786,30]
[393619984,1762858239909,-506.46253438,0.00035793,30]
[393619985,1762858239918,-500.0,0.00035947,30]
[393619986,1762858239927,-919.51105167,0.0003604,30]
[393619988,1762858239936,-610.14834902,0.00036051,30]
[393619990,1762858239945,-500.0,0.0003606,30]
[393619992,1762858239954,-911.05268893,0.00036086,30]
[393619994,1762858239963,-162.054811,0.00036225,3]
[393619996,1762858239972,-154.118764,0.00036225,3]
[393619998,1762858239981,-157.332354,0.00036225,3]
[393620000,1762858239991,-1000.0,0.0003626,5]
[393620002,1762858240000,-1652.0,0.00036384,7]
[393620004,1762858240010,-1652.0,0.0003645,2]
[393620006,1762858240019,-1652.0,0.00036739,2]
[393620009,1762858240029,-150.0,0.000368,2]
[393620011,1762858240039,-360.0,0.0003685,2]
[393620013,1762858240047,-6920.86465569,0.00036904,4]
[393620015,1762858240057,-1652.0,0.00036914,2]
[393620017,1762858240070,-6920.86465569,0.00036923,4]
[393620018,1762858240079,-9812.11429424,0.00036923,4]
[393620019,1762858240089,-15812.09319399,0.00036933,5]
[393620020,1762858240098,-623.5864137,0.00036968,2]
[393620021,1762858240107,-3440.59257387,0.00037063,2]
[393620022,1762858240117,-6810.61605906,0.00037063,2]
[393620023,1762858240126,-6920.86465569,0.00037094,4]
[393620024,1762858240135,-9812.11429424,0.00037094,4]
[393620025,1762858240144,-1048.89,0.000371,30]
[393620026,1762858240153,-574.0,0.00037104,2]
[393620027,1762858240162,-225.256,0.00037104,2]
[393620028,1762858240171,-1273.0,0.00037104,2]
[393620029,1762858240180,-5689.877,0.00037104,2]
[393620030,1762858240190,-1244.351,0.00037104,2]
[393620031,1762858240199,-731.3667815,0.00037136,2]
[393620032,1762858240208,-152.0,0.00037278,4]
[393620033,1762858240218,-839.1471493,0.00037304,2]
[393620034,1762858240227,-946.9275171,0.00037472,2]
[393620035,1762858240237,-361.0,0.000375,120]
[393620036,1762858240246,-1054.7078849,0.00037639,2]
[393620037,1762858240255,-1681.0,0.000378,2]
[393620038,1762858240264,-1162.4882527,0.00037807,2]
[393620039,1762858240274,-423.69475923,0.000379,2]
[393620040,1762858240284,-1270.2686205,0.00037975,2]
[393620041,1762858240293,-6920.86465569,0.0003799,4]
[393620042,1762858240303,-9812.11429424,0.0003799,4]
[393620043,1762858240312,-2000.0,0.00038,2]
[393620044,1762858240322,-2000.0,0.00038,2]
[393620045,1762858240331,-2000.0,0.00038,2]
[393620046,1762858240340,-2000.0,0.00038,2]
[393620047,1762858240349,-960.811,0.00038,2]
[393620048,1762858240358,-360.0,0.00038102,2]
[393620049,1762858240367,-1378.0489883,0.00038143,2]
[393620050,1762858240376,-423.69475922,0.00038208,2]
[393620051,1762858240385,-500.0,0.00038217,7]
[393620052,1762858240394,-500.0,0.00038217,7]
[393620053,1762858240402,-170.45954845,0.00038217,7]
[393620054,1762858240412,-1048.89,0.000383,30]
[393620055,1762858240424,-1485.8293561,0.00038311,2]
[393620056,1762858240433,-360.0,0.0003832,2]
[393620057,1762858240442,-6920.86465569,0.00038336,4]
[393620058,1762858240451,-29436.3428827,0.00038346,4]
[393620059,1762858240461,-500.0,0.00038356,120]
[393620060,1762858240471,-500.0,0.00038356,120]
[393620061,1762858240480,-500.0,0.00038356,120]
[393620062,1762858240489,-500.0,0.00038356,120]
[393620063,1762858240498,-500.0,0.00038356,120]
[393620064,1762858240507,-500.0,0.00038356,120]
[393620065,1762858240516,-500.0,0.00038356,120]
[393620066,1762858240525,-500.0,0.00038356,120]
[393620067,1762858240534,-500.0,0.00038356,120]
[393620068,1762858240543,-500.0,0.00038356,120]
[393620069,1762858240552,-500.0,0.00038356,120]
[393620070,1762858240562,-340.16,0.00038356,120]
[393620071,1762858240571,-500.0,0.00038356,2]
[393620072,1762858240580,-2003.16,0.00038356,2]
[393620073,1762858240589,-2003.16,0.00038356,2]
[393620074,1762858240598,-2003.16,0.00038356,2]
[393620075,1762858240607,-2003.16,0.00038356,2]
[393620076,1762858240616,-2003.16,0.00038356,2]
[393620077,1762858240625,-2003.16,0.00038356,2]
[393620078,1762858240635,-2003.16,0.00038356,2]
[393620079,1762858240644,-2003.16,0.00038356,2]
[393620080,1762858240653,-2003.16,0.00038356,2]
[393620081,1762858240662,-2003.16,0.00038356,2]
[393620082,1762858240671,-2003.16,0.00038356,2]
[393620083,1762858240680,-2003.16,0.00038356,2]
[393620084,1762858240689,-2003.16,0.00038356,2]
[393620085,1762858240699,-2003.16,0.00038356,2]
[393620086,1762858240708,-2003.16,0.00038356,2]
[393620087,1762858240717,-2003.16,0.00038356,2]
[393620088,1762858240726,-2003.16,0.00038356,2]
[393620089,1762858240735,-2003.16,0.00038356,2]
[393620090,1762858240743,-2003.16,0.00038356,2]
[393620091,1762858240752,-2003.16,0.00038356,2]
[393620092,1762858240761,-2003.16,0.00038356,2]
[393620093,1762858240770,-2003.16,0.00038356,2]
[393620094,1762858240780,-2003.16,0.00038356,2]
[393620095,1762858240789,-2003.22841379,0.00038356,2]
[393620096,1762858240798,-500.0,0.00038356,2]
[393620097,1762858240807,-500.0,0.00038356,2]
[393620098,1762858240816,-500.0,0.00038356,2]
[393620099,1762858240825,-500.0,0.00038356,2]
[393620100,1762858240834,-500.0,0.00038356,2]
[393620101,1762858240843,-500.0,0.00038356,2]
[393620102,1762858240852,-500.0,0.00038356,2]
[393620103,1762858240861,-500.0,0.00038356,2]
[393620104,1762858240870,-500.0,0.00038356,2]
[393620105,1762858240879,-500.0,0.00038356,2]
[393620106,1762858240888,-500.0,0.00038356,2]
[393620107,1762858240897,-500.0,0.00038356,2]
[393620108,1762858240908,-500.0,0.00038356,2]
[393620109,1762858240918,-414.66202344,0.00038356,2]
[393620110,1762858240927,-200.0,0.00038417,6]
[393620111,1762858240936,-200.0,0.00038417,6]
[393620112,1762858240945,-1593.6097239,0.00038479,2]
[393620113,1762858240954,-423.69475922,0.00038516,2]
[393620114,1762858240963,-3855.0,0.00038572,2]
[393620115,1762858240973,-9812.11429424,0.00038642,4]
[393620116,1762858240982,-1701.3900917,0.00038647,2]
[393620117,1762858240991,-3855.0,0.00038652,2]
[393620118,1762858241002,-361.0,0.00038778,7]
[393620119,1762858241012,-3855.0,0.00038795,2]
[393620120,1762858241021,-1809.1704595,0.00038815,2]
[393620121,1762858241030,-423.69475922,0.00038825,2]
[393620122,1762858241039,-200.82425172,0.00038849,11]
[393620123,1762858241048,-200.82425169,0.00038849,11]
[393620124,1762858241057,-200.82425169,0.00038849,11]
[393620125,1762858241067,-200.82425169,0.00038849,11]
[393620126,1762858241076,-200.82425169,0.00038849,11]
[393620127,1762858241085,-200.82425169,0.00038849,11]
[393620128,1762858241094,-200.82425169,0.00038849,11]
[393620129,1762858241103,-200.82425169,0.00038849,11]
[393620130,1762858241113,-200.82425169,0.00038849,11]
[393620131,1762858241122,-200.82425169,0.00038849,11]
[393620132,1762858241132,-200.82425169,0.00038849,11]
[393620133,1762858241141,-200.82425169,0.00038849,11]
[393620134,1762858241150,-234.91258694,0.0003886,30]
[393620135,1762858241159,-500.0,0.00038861,7]
[393620136,1762858241168,-500.0,0.00038861,7]
[393620137,1762858241178,-500.0,0.00038861,7]
[393620138,1762858241187,-500.0,0.00038861,7]
[393620139,1762858241196,-500.0,0.00038861,7]
[393620140,1762858241205,-500.0,0.00038861,7]
[393620141,1762858241214,-300.0,0.00038911,7]
[393620142,1762858241223,-3855.0,0.00038938,2]
[393620143,1762858241232,-300.0,0.00038947,2]
[393620144,1762858241242,-1916.9508273,0.00038983,2]
[393620145,1762858241251,-9812.11429424,0.00038989,4]
[393620146,1762858241260,-2000.0,0.00038999,2]
[393620147,1762858241269,-3600.0,0.00039,14]
[393620148,1762858241279,-300.0,0.00039048,7]
[393620149,1762858241288,-300.0,0.00039079,2]
[393620150,1762858241297,-5400.0,0.000391,14]
[393620151,1762858241307,-505.87243499,0.00039105,120]
[393620152,1762858241316,-300.0,0.00039132,2]
[393620153,1762858241326,-423.69475922,0.00039133,2]
[393620154,1762858241335,-208.85288909,0.00039145,7]
[393620155,1762858241345,-157.332354,0.0003915,60]
[393620156,1762858241354,-2024.7311951,0.00039151,2]
[393620157,1762858241362,-9812.11429424,0.0003919,4]
[393620158,1762858241372,-7200.0,0.000392,14]
[393620159,1762858241381,-500.0,0.00039299,2]
[393620160,1762858241390,-9000.0,0.000393,14]
[393620161,1762858241400,-1048.89,0.000393,30]
[393620162,1762858241409,-1352.0,0.00039304,2]
[393620163,1762858241423,-2132.5115629,0.00039318,2]
[393620164,1762858241433,-300.0,0.0003933,2]
[393620165,1762858241442,-360.0,0.00039332,120]
[393620166,1762858241452,-150.0,0.00039366,7]
[393620167,1762858241464,-162.054811,0.000394,60]
[393620168,1762858241475,-154.118764,0.000394,60]
[393620169,1762858241486,-157.332354,0.000394,60]
[393620170,1762858241496,-1800.0,0.000394,14]
[393620171,1762858241505,-1000.0,0.000394,7]
[393620172,1762858241514,-300.0,0.00039405,2]
[393620173,1762858241523,-262.72460208,0.00039415,95]
[393620174,1762858241532,-423.69475922,0.00039441,2]
[393620175,1762858241541,-360.0,0.00039447,2]
[393620176,1762858241550,-300.0,0.00039448,2]
[393620177,1762858241559,-9812.11429424,0.00039476,4]
[393620178,1762858241569,-2240.2919307,0.00039486,2]
[393620179,1762858241577,-200.0,0.00039488,20]
[393620180,1762858241586,-1442.82979259,0.00039494,2]
[393620181,1762858241595,-300.0,0.00039495,2]
[393620182,1762858241604,-1000.0,0.000395,7]
[393620183,1762858241613,-1800.0,0.000395,14]
[393620184,1762858241622,-2500.0,0.00039504,14]
[393620185,1762858241631,-2500.0,0.00039513,14]
[393620186,1762858241640,-300.0,0.00039513,2]
[393620187,1762858241649,-2500.0,0.00039522,14]
[393620188,1762858241658,-2500.0,0.0003953,14]
[393620189,1762858241667,-9812.11429424,0.00039538,4]
[393620190,1762858241676,-2500.0,0.00039539,14]
[393620191,1762858241685,-200.0,0.00039541,20]
[393620192,1762858241694,-2500.0,0.00039548,14]
[393620193,1762858241703,-879.02,0.00039557,5]
[393620194,1762858241712,-2500.0,0.00039557,14]
[393620195,1762858241721,-1800.0,0.000396,14]
[393620196,1762858241730,-150.0,0.00039637,7]
[393620197,1762858241739,-494.84715696,0.00039649,30]
[393620198,1762858241748,-162.054811,0.0003965,60]
[393620199,1762858241756,-154.118764,0.0003965,60]
[393620200,1762858241766,-157.332354,0.0003965,60]
[393620201,1762858241776,-150.0,0.0003965,7]
[393620202,1762858241785,-9812.11429424,0.00039652,4]
[393620203,1762858241794,-2500.0,0.00039652,14]
[393620204,1762858241803,-491.85145446,0.00039652,14]
[393620205,1762858241812,-2348.0722985,0.00039654,2]
[393620206,1762858241821,-2001.2928,0.00039662,3]
[393620207,1762858241830,-2000.0,0.00039662,3]
[393620208,1762858241839,-300.0,0.00039665,2]
[393620209,1762858241850,-360.0,0.0003967,7]
[393620210,1762858241861,-500.0,0.0003967,2]
[393620211,1762858241871,-500.0,0.0003967,2]
[393620212,1762858241881,-500.0,0.0003967,2]
[393620213,1762858241890,-662.8021949,0.0003967,2]
[393620214,1762858241900,-1000.0,0.0003967,2]
[393620215,1762858241910,-1000.0,0.0003967,2]
[393620216,1762858241920,-1000.0,0.0003967,2]
[393620217,1762858241929,-1000.0,0.0003967,2]
[393620218,1762858241938,-9812.11429424,0.00039671,4]
[393620219,1762858241948,-3482.0,0.0003968,5]
[393620220,1762858241958,-150.0,0.00039681,41]
[393620221,1762858241969,-150.0,0.00039681,41]
[393620222,1762858241979,-500.0,0.00039681,41]
[393620223,1762858241987,-500.0,0.00039681,41]
[393620224,1762858241997,-150.0,0.00039681,41]
[393620225,1762858242006,-500.0,0.00039681,41]
[393620226,1762858242016,-500.0,0.00039681,41]
[393620227,1762858242025,-150.0,0.00039681,41]
[393620228,1762858242035,-500.0,0.00039681,41]
[393620229,1762858242044,-150.0,0.00039681,41]
[393620230,1762858242053,-500.0,0.00039681,41]
[393620231,1762858242062,-150.0,0.00039681,41]
[393620232,1762858242072,-150.0,0.00039681,41]
[393620233,1762858242080,-500.0,0.00039681,41]
[393620234,1762858242090,-500.0,0.00039681,23]
[393620235,1762858242099,-150.0,0.00039681,41]
[393620236,1762858242109,-500.0,0.00039681,41]
[393620237,1762858242118,-500.0,0.00039681,2]
[393620238,1762858242128,-500.0,0.00039681,41]
[393620239,1762858242136,-150.0,0.00039681,41]
[393620240,1762858242145,-500.0,0.00039681,2]
[393620241,1762858242153,-500.0,0.00039681,41]
[393620242,1762858242161,-500.0,0.00039681,41]
[393620243,1762858242169,-500.0,0.00039681,41]
[393620244,1762858242178,-150.0,0.00039681,2]
[393620245,1762858242190,-150.0,0.00039681,41]
[393620246,1762858242207,-500.0,0.00039681,41]
[393620247,1762858242216,-150.0,0.00039681,2]
[393620248,1762858242225,-150.0,0.00039681,41]
[393620249,1762858242236,-150.0,0.00039681,2]
[393620250,1762858242247,-500.0,0.00039681,41]
[393620251,1762858242257,-500.0,0.00039681,41]
[393620252,1762858242268,-150.0,0.000397,120]
[393620253,1762858242279,-1000.0,0.000397,7]
[393620254,1762858242288,-1800.0,0.000397,14]
[393620255,1762858242298,-612.0,0.000397,7]
[393620256,1762858242307,-4549.4624851,0.00039721,2]
[393620257,1762858242317,-58872.6857654,0.00039723,4]
[393620258,1762858242326,-500.0,0.00039726,5]
[393620259,1762858242335,-114286.5527326,0.00039733,2]
[393620260,1762858242345,-5621.4096342,0.00039733,2]
[393620261,1762858242354,-9812.11429424,0.00039738,4]
[393620262,1762858242364,-9812.11429424,0.00039745,4]
[393620263,1762858242373,-600.0,0.00039748,15]
[393620264,1762858242382,-600.0,0.00039748,15]
[393620265,1762858242391,-600.0,0.00039748,15]
[393620266,1762858242400,-600.0,0.00039748,15]
[393620267,1762858242409,-600.0,0.00039748,15]
[393620268,1762858242422,-600.0,0.00039748,15]
[393620269,1762858242431,-600.0,0.00039748,15]
[393620270,1762858242440,-600.0,0.00039748,15]
[393620271,1762858242449,-600.0,0.00039748,15]
[393620272,1762858242459,-600.0,0.00039748,15]
[393620273,1762858242468,-423.69475922,0.00039749,2]
[393620274,1762858242477,-3440.59257387,0.00039749,2]
[393620275,1762858242486,-150.0,0.00039749,7]
[393620276,1762858242497,-1161.64851535,0.00039749,2]
[393620277,1762858242507,-200.82425169,0.00039749,12]
[393620278,1762858242516,-180.58238421,0.00039749,15]
[393620279,1762858242525,-670.82250056,0.00039749,8]
[393620280,1762858242534,-6810.61605906,0.00039749,2]
[393620281,1762858242543,-1858.77025962,0.00039749,2]
[393620282,1762858242553,-500.0,0.0003975,2]
[393620283,1762858242562,-19624.2285885,0.00039751,4]
[393620284,1762858242571,-19624.2285885,0.00039755,4]
[393620285,1762858242580,-2000.0,0.00039755,120]
[393620286,1762858242589,-1716.57996,0.0003976,2]
[393620287,1762858242598,-33287.216,0.00039761,2]
[393620288,1762858242607,-1000.0,0.00039761,120]
[393620289,1762858242616,-1000.0,0.00039761,2]
[393620290,1762858242625,-150.0,0.00039765,2]
[393620291,1762858242634,-854.50952725,0.00039765,2]
[393620292,1762858242643,-150.0,0.00039765,2]
[393620293,1762858242652,-42274.2204564,0.00039765,2]
[393620294,1762858242661,-150.0,0.00039765,2]
[393620295,1762858242670,-1422.77853606,0.00039765,2]
[393620296,1762858242680,-500.0,0.0003977,2]
[393620297,1762858242689,-500.0,0.0003977,2]
[393620298,1762858242698,-500.0,0.0003977,2]
[393620300,1762858242707,-1000.0,0.0003977,2]
[393620301,1762858242850,-1000.0,0.0003977,2]
[393620302,1762858242860,-1000.0,0.0003977,2]
[393620303,1762858242869,-300.0,0.00039779,2]
[393620304,1762858242879,-154.118764,0.0003979,30]
[393620306,1762858242887,-157.332354,0.0003979,30]
[393620307,1762858242896,-9812.11429424,0.0003979,4]
[393620308,1762858242906,-500.0,0.00039799,2]
[393620309,1762858242915,-152.37618865,0.00039799,20]
[393620310,1762858242924,-130615.40192372,0.000398,120]
[393620311,1762858242933,-150.0,0.000398,23]
[393620312,1762858242943,-447.0,0.000398,2]
[393620313,1762858242952,-184.12,0.000398,41]
[393620316,1762858242961,-1823.0,0.000398,14]
[393620317,1762858242971,-250.0,0.000398,14]
[393620318,1762858242979,-250.0,0.000398,14]
[393620319,1762858242988,-250.0,0.000398,14]
[393620320,1762858242997,-250.0,0.000398,14]
[393620321,1762858243007,-250.0,0.000398,14]
[393620322,1762858243016,-250.0,0.000398,14]
[393620324,1762858243026,-250.0,0.000398,14]
[393620326,1762858243036,-250.0,0.000398,14]
[393620328,1762858243046,-250.0,0.000398,14]
[393620329,1762858243056,-250.0,0.000398,14]
[393620330,1762858243066,-250.0,0.000398,14]
[393620331,1762858243075,-250.0,0.000398,14]
[393620332,1762858243085,-250.0,0.000398,14]
[393620333,1762858243095,-250.0,0.000398,14]
[393620334,1762858243104,-250.0,0.000398,14]
[393620335,1762858243114,-250.0,0.000398,14]
[393620336,1762858243125,-250.0,0.000398,14]
[393620337,1762858243135,-250.0,0.000398,14]
[393620338,1762858243145,-250.0,0.000398,14]
[393620339,1762858243154,-250.0,0.000398,14]
[393620340,1762858243164,-250.0,0.000398,14]
[393620341,1762858243173,-250.0,0.000398,14]
[393620342,1762858243183,-270.6,0.000398,14]
[393620343,1762858243192,-537.0,0.00039808,120]
[393620344,1762858243202,-150.0,0.00039818,41]
[393620345,1762858243212,-297.73222323,0.00039818,41]
[393620346,1762858243221,-500.0,0.00039818,41]
[393620347,1762858243230,-500.0,0.00039818,41]
[393620348,1762858243240,-150.0,0.00039818,41]
[393620349,1762858243249,-500.0,0.00039818,41]
[393620350,1762858243259,-500.0,0.00039818,41]
[393620351,1762858243270,-150.0,0.00039818,41]
[393620352,1762858243280,-500.0,0.00039818,41]
[393620353,1762858243290,-150.0,0.00039818,41]
[393620354,1762858243301,-500.0,0.00039818,41]
[393620355,1762858243311,-150.0,0.00039818,41]
[393620356,1762858243322,-150.0,0.00039818,41]
[393620357,1762858243332,-500.0,0.00039818,41]
[393620358,1762858243342,-500.0,0.00039818,23]
[393620359,1762858243351,-150.0,0.00039818,41]
[393620360,1762858243361,-500.0,0.00039818,41]
[393620361,1762858243370,-500.0,0.00039818,2]
[393620362,1762858243379,-500.0,0.00039818,41]
[393620363,1762858243388,-152.81423976,0.00039818,41]
[393620364,1762858243398,-500.0,0.00039818,2]
[393620365,1762858243408,-500.0,0.00039818,41]
[393620366,1762858243420,-500.0,0.00039818,41]
[393620367,1762858243430,-150.0,0.00039818,41]
[393620368,1762858243440,-500.0,0.00039818,41]
[393620369,1762858243452,-150.0,0.00039818,41]
[393620370,1762858243463,-500.0,0.00039818,41]
[393620371,1762858243474,-500.0,0.00039818,41]
[393620372,1762858243486,-150.0,0.00039818,23]
[393620373,1762858243499,-150.0,0.00039818,23]
[393620374,1762858243509,-151.0272472,0.00039818,23]
[393620375,1762858243518,-150.0,0.00039818,23]
[393620376,1762858243529,-150.21338972,0.00039818,23]
[393620377,1762858243538,-150.0,0.00039818,23]
[393620378,1762858243548,-159.48620506,0.00039818,23]
[393620379,1762858243557,-253.18593022,0.00039818,23]
[393620380,1762858243566,-150.0,0.00039818,23]
[393620381,1762858243575,-150.0,0.00039818,23]
[393620382,1762858243585,-150.0,0.00039818,23]
[393620383,1762858243595,-150.47221411,0.00039818,23]
[393620384,1762858243604,-150.0,0.00039818,23]
[393620385,1762858243614,-150.0,0.00039818,23]
[393620386,1762858243623,-150.0,0.00039818,23]
[393620387,1762858243633,-150.0,0.00039818,23]
[393620388,1762858243642,-151.18066165,0.00039818,23]
[393620389,1762858243651,-151.22192366,0.00039821,120]
[393620390,1762858243660,-543.64087408,0.00039821,2]
[393620391,1762858243669,-2455.85266629,0.00039822,2]
[393620392,1762858243678,-75952.84595525,0.00039837,28]
[393620393,1762858243687,-151.0,0.00039841,120]
[393620394,1762858243696,-151.0,0.00039841,120]
[393620395,1762858243704,-151.0,0.00039841,120]
[393620396,1762858243714,-153.636176,0.00039841,120]
[393620397,1762858243723,-151.957793,0.00039841,120]
[393620398,1762858243733,-151.0,0.00039841,60]
[393620399,1762858243742,-151.0,0.00039841,120]
[393620400,1762858243751,-151.0,0.00039841,120]
[393620401,1762858243760,-153.658686,0.00039841,120]
[393620402,1762858243769,-151.0,0.00039841,120]
[393620403,1762858243779,-151.0,0.00039841,120]
[393620404,1762858243788,-152.034756,0.00039841,120]
[393620405,1762858243797,-151.0,0.00039841,30]
[393620406,1762858243806,-151.89687,0.00039841,30]
[393620407,1762858243815,-151.0,0.00039841,120]
[393620408,1762858243824,-151.0,0.00039841,120]
[393620409,1762858243833,-151.0,0.00039841,120]
[393620410,1762858243842,-301.390707,0.00039841,120]
[393620411,1762858243851,-158.545571,0.00039841,120]
[393620412,1762858243860,-152.959432,0.00039841,120]
[393620413,1762858243869,-152.822865,0.00039841,120]
[393620414,1762858243879,-151.929343,0.00039841,120]
[393620415,1762858243887,-154.676601,0.00039841,120]
[393620416,1762858243896,-151.0,0.00039841,120]
[393620417,1762858243905,-151.0,0.00039841,120]
[393620418,1762858243914,-152.255212,0.00039841,120]
[393620419,1762858243924,-153.57712,0.00039841,120]
[393620420,1762858243933,-151.346946,0.00039841,120]
[393620421,1762858243942,-151.0,0.00039841,120]
[393620422,1762858243951,-184.564475,0.00039841,120]
[393620423,1762858243960,-152.786517,0.00039841,120]
[393620424,1762858243969,-500.0,0.00039841,2]
[393620425,1762858243980,-500.0,0.00039841,2]
[393620426,1762858243991,-500.0,0.00039841,2]
[393620427,1762858244002,-500.0,0.00039841,2]
[393620428,1762858244011,-500.0,0.00039841,2]
[393620429,1762858244020,-500.0,0.00039841,2]
[393620430,1762858244029,-500.0,0.00039841,2]
[393620431,1762858244038,-500.0,0.00039841,2]
[393620432,1762858244047,-500.0,0.00039841,2]
[393620433,1762858244056,-500.0,0.00039841,2]
[393620434,1762858244065,-500.0,0.00039841,2]
[393620435,1762858244074,-298.98842692,0.00039841,2]
[393620436,1762858244083,-151.0,0.00039841,120]
[393620437,1762858244092,-151.0,0.00039841,120]
[393620438,1762858244101,-151.0,0.00039841,120]
[393620439,1762858244110,-151.0,0.00039841,120]
[393620440,1762858244119,-151.0,0.00039841,120]
[393620441,1762858244129,-151.0,0.00039841,120]
[393620442,1762858244139,-151.0,0.00039841,120]
[393620443,1762858244148,-151.0,0.00039841,120]
[393620444,1762858244158,-166.501391,0.00039841,120]
[393620445,1762858244167,-152.546117,0.00039841,120]
[393620446,1762858244176,-151.0,0.00039841,120]
[393620447,1762858244185,-151.0,0.00039841,120]
[393620448,1762858244195,-151.0,0.00039841,120]
[393620449,1762858244204,-240.414561,0.00039841,120]
[393620450,1762858244214,-153.075612,0.00039841,120]
[393620451,1762858244223,-151.0,0.00039841,120]
[393620452,1762858244233,-151.0,0.00039841,120]
[393620453,1762858244243,-153.424306,0.00039841,120]
[393620454,1762858244252,-151.0,0.00039841,30]
[393620455,1762858244262,-151.0,0.00039841,30]
[393620456,1762858244272,-151.0,0.00039841,30]
[393620457,1762858244281,-160.651162,0.00039841,120]
[393620458,1762858244292,-245.062125,0.00039841,30]
[393620459,1762858244301,-151.0,0.00039841,120]
[393620460,1762858244311,-170.165682,0.00039841,120]
[393620461,1762858244321,-151.0,0.00039841,120]
[393620462,1762858244331,-151.0,0.00039841,120]
[393620463,1762858244340,-152.332641,0.00039841,120]
[393620464,1762858244350,-151.799888,0.00039841,120]
[393620465,1762858244359,-151.0,0.00039841,120]
[393620466,1762858244368,-151.0,0.00039841,120]
[393620467,1762858244377,-151.0,0.00039841,120]
[393620468,1762858244386,-151.0,0.00039841,120]
[393620469,1762858244395,-151.766308,0.00039841,120]
[393620470,1762858244404,-205.930075,0.00039841,7]
[393620471,1762858244416,-205.930075,0.00039841,7]
[393620472,1762858244425,-205.930075,0.00039841,7]